bitfinex-derivatives/quotes_BNBF0:USTF0_20250316
["timestamp","ask_amount","ask_price","bid_price","bid_amount"]
[1742148360776,0.60928464,604.06,602.52,0.93193918]
[1742148361080,0.33109841,604.05,602.52,0.93193918]
[1742148361281,0.60929012,604.05,602.52,0.93193918]
[1742148361480,0.27819171,604.04,602.52,0.93193918]
[1742148361680,0.60930109,604.03,602.52,0.93193918]
[1742148361981,0.27819171,604.02,602.52,0.93193918]
[1742148362380,0.60931205,604.01,602.52,0.93193918]
[1742148362585,0.60931753,604.0,602.52,0.93193918]
[1742148362779,0.60932302,603.99,602.52,0.93193918]
[1742148363080,1.42037636,604.25,602.52,0.93193918]
[1742148363081,0.60958912,603.98,602.52,0.93193918]
[1742148363282,0.27845233,603.97,602.52,0.93193918]
[1742148363485,0.27845233,603.96,602.52,0.93193918]
[1742148363678,0.27845233,603.95,602.52,0.93193918]
[1742148363881,0.27845233,603.94,602.52,0.93193918]
[1742148364184,0.27845233,603.93,602.52,0.93193918]
[1742148364384,0.33113679,603.98,602.52,0.93193918]
[1742148364385,0.27845233,603.92,602.52,0.93193918]
[1742148364581,0.27845233,603.97,602.52,0.93193918]
[1742148364884,0.27845233,603.96,602.52,0.93193918]
[1742148365082,0.27845233,603.95,602.52,0.93193918]
[1742148365282,0.27845233,603.94,602.52,0.93193918]
[1742148365485,0.27845233,603.97,602.52,0.93193918]
[1742148365685,0.27845233,603.96,602.52,0.93193918]
[1742148365882,0.27845233,603.95,602.52,0.93193918]
[1742148366085,0.27845233,603.97,602.52,0.93193918]
[1742148366982,0.2786519,603.96,602.52,0.93193918]
[1742148367482,0.2786519,603.95,602.52,0.93193918]
[1742148367686,0.2786519,603.97,602.53,0.30476795]
[1742148367884,0.2786519,603.96,602.53,0.30476795]
[1742148368184,0.2786519,603.97,602.53,0.30476795]
[1742148368385,0.2786519,603.96,602.53,0.30476795]
[1742148368589,0.2786519,603.95,602.54,0.33192817]
[1742148368886,0.2786519,603.94,602.55,0.30476795]
[1742148369181,0.2786519,603.93,602.56,0.33191715]
[1742148369384,0.2786519,603.97,602.57,0.30476795]
[1742148369586,0.2786519,603.96,602.57,0.30476795]
[1742148369781,0.2786519,603.97,602.58,0.33190613]
[1742148369984,0.27869286,603.96,602.58,0.33190613]
[1742148370184,0.27869286,603.95,602.58,0.33190613]
[1742148370388,0.27869286,603.97,602.58,0.33190613]
[1742148370587,0.27869286,603.96,602.58,0.33190613]
[1742148370786,0.27869286,603.97,602.58,0.33190613]
[1742148370988,0.27869286,603.96,602.58,0.33190613]
[1742148371182,0.27869286,603.97,602.58,0.33190613]
[1742148371385,0.27869286,603.96,602.58,0.33190613]
[1742148371787,0.27869286,603.95,602.58,0.33190613]
[1742148371983,0.27869286,603.97,602.58,0.33190613]
[1742148372187,0.27869286,603.94,602.58,0.33190613]
[1742148372388,0.27869286,603.93,602.58,0.33190613]
[1742148372583,0.27869286,603.97,602.58,0.33190613]
[1742148372786,0.27869286,603.96,602.58,0.33190613]
[1742148372985,0.27869286,603.97,602.58,0.33190613]
[1742148373187,0.27869286,603.96,602.58,0.33190613]
[1742148373387,0.27865311,603.95,602.58,0.33190613]
[1742148373785,0.60981183,603.94,602.58,0.33190613]
[1742148373990,0.28858952,604.31,602.58,0.33190613]
[1742148373991,0.60981731,603.93,602.58,0.33190613]
[1742148374399,0.27865311,603.92,602.58,0.33190613]
[1742148374597,0.27865311,603.91,602.58,0.33190613]
[1742148374893,0.27865311,603.9,602.58,0.33190613]
[1742148375191,2.51346238,604.1,602.58,0.33190613]
[1742148375192,0.60972651,603.89,602.58,0.33190613]
[1742148375392,0.27854037,603.88,602.58,0.33190613]
[1742148375595,0.27854037,603.87,602.58,0.33190613]
[1742148375993,2.51346238,603.82,602.58,0.33190613]
[1742148376296,0.27854037,603.81,602.58,0.33190613]
[1742148376491,0.27854037,603.8,602.58,0.33190613]
[1742148376692,0.27854037,603.79,602.52,0.6]
[1742148377090,0.27854037,603.78,602.52,0.6]
[1742148377295,0.27854037,603.77,602.52,0.6]
[1742148377493,0.27854037,603.76,602.52,0.6]
[1742148377695,2.67899985,603.81,602.52,0.6]
[1742148377696,0.27854037,603.75,602.52,0.6]
[1742148378096,0.27854037,603.74,602.52,0.6]
[1742148378300,2.67899985,603.81,602.52,0.6]
[1742148378301,0.27854037,603.73,602.52,0.6]
[1742148378502,2.51346238,603.56,602.52,0.6]
[1742148378703,0.27854037,603.55,602.52,0.6]
[1742148380399,0.27854037,603.71,602.52,0.6]
[1742148380607,0.60976206,603.7,602.52,0.6]
[1742148380896,0.60980719,603.69,602.52,0.6]
[1742148381102,0.60981268,603.68,602.52,0.6]
[1742148381395,0.27851133,603.67,602.52,0.6]
[1742148383603,0.60981816,603.67,602.52,0.6]
[1742148383797,0.27851133,603.66,602.52,0.6]
[1742148384099,0.33131781,603.65,602.52,0.6]
[1742148384299,0.27851133,603.64,602.52,0.6]
[1742148384695,0.27848524,603.63,602.52,0.6]
[1742148384898,0.27848524,603.64,602.52,0.6]
[1742148385097,0.27848524,603.63,602.52,0.6]
[1742148385495,0.27848524,603.62,602.52,0.6]
[1742148385692,0.27848524,603.64,602.52,0.6]
[1742148387624,0.33131781,603.65,602.52,0.6]
[1742148387902,0.27854568,603.64,602.52,0.6]
[1742148389596,0.27854568,603.64,602.53,0.33193367]
[1742148390996,0.27849083,603.63,602.53,0.33193367]
[1742148391196,0.27849083,603.64,602.53,0.33193367]
[1742148391497,0.27849083,603.63,602.53,0.33193367]
[1742148391705,0.27849083,603.62,602.53,0.33193367]
[1742148391897,0.27849083,603.64,602.53,0.33193367]
[1742148392098,0.27849083,603.63,602.53,0.33193367]
[1742148392301,0.33131781,603.65,602.53,0.33193367]
[1742148392302,0.27849083,603.64,602.53,0.33193367]
[1742148392503,0.27849083,603.63,602.53,0.33193367]
[1742148392704,0.27849083,603.64,602.53,0.33193367]
[1742148392901,0.27849083,603.63,602.53,0.33193367]
[1742148393203,0.27849083,603.62,602.53,0.33193367]
[1742148393698,0.27849083,603.61,602.53,0.33193367]
[1742148393912,0.27849083,604.13,602.53,0.33193367]
[1742148394103,0.27849083,603.6,602.53,0.33193367]
[1742148394303,0.27849083,603.59,602.53,0.33193367]
[1742148394604,0.33106005,604.12,602.53,0.33193367]
[1742148394605,0.27849083,603.58,602.53,0.33193367]
[1742148394805,0.27849083,604.11,602.53,0.33193367]
[1742148395007,0.27849083,604.1,602.53,0.33193367]
[1742148395304,0.60956732,604.09,602.53,0.33193367]
[1742148395505,0.6095728,604.08,602.53,0.33193367]
[1742148395804,0.60957828,604.07,602.53,0.33193367]
[1742148396004,0.60958376,604.06,602.53,0.33193367]
[1742148396309,0.27849083,604.05,602.53,0.33193367]
[1742148396506,0.27849083,604.04,602.53,0.33193367]
[1742148396700,0.27849083,604.05,602.53,0.33193367]
[1742148397005,0.27849083,604.04,602.53,0.33193367]
[1742148397507,0.27849083,604.03,602.53,0.33193367]
[1742148397705,0.27849083,604.02,602.53,0.33193367]
[1742148397905,0.27849083,604.01,602.53,0.33193367]
[1742148398105,0.33109293,604.06,602.53,0.33193367]
[1742148398406,0.27844528,604.05,602.53,0.33193367]
[1742148398704,0.60954918,604.04,602.53,0.33193367]
[1742148398907,0.27844528,604.03,602.53,0.33193367]
[1742148400107,0.33111486,604.02,602.53,0.33193367]
[1742148400304,0.27844528,604.01,602.53,0.33193367]
[1742148400608,0.27844528,604.0,602.53,0.33193367]
[1742148400806,0.27844528,603.99,602.53,0.33193367]
[1742148401003,0.27844528,603.98,602.53,0.33193367]
[1742148401210,0.27844528,603.97,602.53,0.33193367]
[1742148401512,0.27840834,603.96,602.53,0.33193367]
[1742148401808,0.27840834,603.97,602.53,0.86893367]
[1742148402007,0.27840834,603.96,602.53,0.86893367]
[1742148402211,0.27840834,603.97,602.53,0.86893367]
[1742148402508,0.27840834,603.96,602.53,0.86893367]
[1742148402708,0.27840834,603.97,602.53,0.86893367]
[1742148402907,0.27840834,603.96,602.53,0.86893367]
[1742148403303,0.27840834,603.97,602.53,0.86893367]
[1742148403502,0.27840834,603.96,602.53,0.86893367]
[1742148403705,0.27840834,603.95,602.53,0.86893367]
[1742148403906,0.27840834,603.97,602.53,0.86893367]
[1742148404206,0.27840834,603.96,602.53,0.86893367]
[1742148404509,0.27840834,603.95,602.53,0.86893367]
[1742148404708,0.27840834,603.97,602.53,0.86893367]
[1742148405003,0.60955609,603.96,602.53,0.86893367]
[1742148405310,0.33114775,603.96,602.53,0.86893367]
[1742148405604,0.2784096,603.95,602.53,0.86893367]
[1742148407011,0.33114775,603.96,602.53,0.86893367]
[1742148407207,0.27846792,603.95,602.53,0.86893367]
[1742148408709,0.33114775,603.96,602.53,0.86893367]
[1742148409012,0.27846111,603.95,602.53,0.86893367]
[1742148410411,0.33114775,603.96,602.53,0.86893367]
[1742148410611,0.27845764,603.95,602.53,0.86893367]
[1742148412407,0.27847035,603.94,602.53,0.86893367]
[1742148412708,0.27847035,603.93,602.53,0.86893367]
[1742148412913,0.27847035,603.95,602.53,0.86893367]
[1742148413113,0.27847035,603.94,602.53,0.86893367]
[1742148413314,0.27847035,603.95,602.53,0.86893367]
[1742148413511,0.27847035,603.93,602.53,0.86893367]
[1742148413713,0.27847035,603.92,602.53,0.86893367]
[1742148413914,0.27847035,603.91,602.53,0.86893367]
[1742148414215,0.33114775,603.96,602.53,0.86893367]
[1742148414411,0.27845675,603.95,602.53,0.86893367]
[1742148414617,0.27845675,603.94,602.54,0.30477357]
[1742148414915,0.27845675,603.93,602.55,0.33192266]
[1742148415119,0.27845675,603.92,602.55,0.33192266]
[1742148415311,0.27845675,603.91,602.55,0.33192266]
[1742148415512,0.27845675,603.9,602.55,0.33192266]
[1742148415711,0.27845675,603.89,602.55,0.33192266]
[1742148415914,0.27845675,603.88,602.55,0.33192266]
[1742148416114,0.27845675,603.87,602.56,0.30477427]
[1742148416309,0.27845675,603.86,602.55,0.33192266]
[1742148416511,0.27845675,603.85,602.55,0.33192266]
[1742148416710,0.33114775,603.96,602.55,0.33192266]
[1742148416711,0.27845675,603.95,602.55,0.33192266]
[1742148416915,0.27845675,603.94,602.55,0.33192266]
[1742148417113,0.27845675,603.93,602.55,0.33192266]
[1742148417313,0.27845675,603.92,602.55,0.33192266]
[1742148417516,0.27845675,603.91,602.55,0.33192266]
[1742148417715,0.27845675,603.9,602.55,0.33192266]
[1742148417911,0.27845675,603.89,602.55,0.33192266]
[1742148418115,0.27845675,603.88,602.55,0.33192266]
[1742148418312,0.27845675,603.87,602.55,0.33192266]
[1742148418517,0.27845675,603.86,602.55,0.33192266]
[1742148418715,0.27845675,603.85,602.55,0.33192266]
[1742148419112,0.27845675,603.84,602.55,0.33192266]
[1742148419312,3.44684287,603.93,602.55,0.33192266]
[1742148419518,2.51346238,603.91,602.55,0.33192266]
[1742148419713,3.72524109,603.9,602.55,0.33192266]
[1742148419918,0.27839822,603.89,602.55,0.33192266]
[1742148420118,0.27839822,603.88,602.55,0.85792266]
[1742148420419,0.27839822,603.87,602.55,0.85792266]
[1742148420829,0.27839822,603.86,602.55,0.85792266]
[1742148421316,0.27839822,603.85,602.55,0.85792266]
[1742148421620,0.27839822,603.84,602.55,0.85792266]
[1742148422017,2.7918606,603.83,602.55,0.85792266]
[1742148422419,0.27839822,603.82,602.55,0.85792266]
[1742148422620,0.27842676,603.81,602.55,0.85792266]
[1742148422919,0.27842676,603.8,602.55,0.85792266]
[1742148423124,0.27842676,603.82,602.55,0.85792266]
[1742148423421,0.27842676,603.81,602.55,0.85792266]
[1742148425221,0.27842676,603.89,602.55,0.85792266]
[1742148425426,0.27842676,603.88,602.55,0.85792266]
[1742148425622,0.27842676,603.89,602.55,0.85792266]
[1742148425823,0.27842676,603.88,602.55,0.85792266]
[1742148426023,2.70150324,603.89,602.55,0.85792266]
[1742148426223,0.27847775,603.88,602.55,0.85792266]
[1742148427922,0.33119711,603.87,602.55,0.85792266]
[1742148428121,0.27847775,603.86,602.55,0.85792266]
[1742148430322,0.27853273,603.85,602.55,0.85792266]
[1742148430525,0.33119711,603.87,602.55,0.85792266]
[1742148430526,0.27853273,603.86,602.55,0.85792266]
[1742148430720,0.27853273,603.85,602.55,0.85792266]
[1742148430925,0.27853273,603.86,602.55,0.85792266]
[1742148431223,0.27853273,603.85,602.55,0.85792266]
[1742148431426,0.27853273,603.86,602.55,0.85792266]
[1742148431626,0.27853273,603.84,602.55,0.85792266]
[1742148431821,0.27853273,603.83,602.55,0.85792266]
[1742148432021,0.27853273,603.82,602.55,0.85792266]
[1742148432234,0.33119711,603.87,602.55,0.85792266]
[1742148432431,0.27851962,603.86,602.55,0.85792266]
[1742148434836,0.33120808,603.85,602.55,0.85792266]
[1742148435035,0.27851962,603.84,602.55,0.85792266]
[1742148435236,0.33121905,603.83,602.55,0.85792266]
[1742148435430,0.27851962,603.82,602.55,0.85792266]
[1742148435836,0.33123002,603.81,602.55,0.85792266]
[1742148436033,0.27851962,603.8,602.55,0.85792266]
[1742148436336,0.33124099,603.79,602.55,0.85792266]
[1742148436538,0.27851962,603.78,602.55,0.85792266]
[1742148440333,0.33124099,603.79,602.55,0.85792266]
[1742148440539,0.27850277,603.78,602.55,0.85792266]
[1742148443134,0.27850277,603.77,602.55,0.85792266]
[1742148443336,0.27850277,603.78,602.55,0.85792266]
[1742148443538,0.27850277,603.77,602.55,0.85792266]
[1742148443740,0.27850277,603.78,602.55,0.85792266]
[1742148444441,0.27842853,603.77,602.55,0.85792266]
[1742148444739,0.27842853,603.76,602.55,0.85792266]
[1742148444940,0.27842853,603.78,602.55,0.85792266]
[1742148445138,0.27842853,603.77,602.55,0.85792266]
[1742148445338,0.27842853,603.78,602.55,0.85792266]
[1742148445538,0.27842853,603.77,602.55,0.85792266]
[1742148445751,0.27842853,603.76,602.55,0.85792266]
[1742148445950,0.27842853,603.78,602.55,0.85792266]
[1742148446143,0.27842853,603.77,602.55,0.85792266]
[1742148446340,0.33125745,603.76,602.55,0.85792266]
[1742148446645,0.27842853,603.75,602.55,0.85792266]
[1742148447044,0.27842853,603.74,602.55,0.85792266]
[1742148447240,0.27842853,603.73,602.55,0.85792266]
[1742148447441,0.27842853,603.72,602.55,0.85792266]
[1742148447649,0.27842853,603.71,602.55,0.85792266]
[1742148447954,0.27842853,603.7,602.55,0.85792266]
[1742148448245,0.27842853,603.69,602.55,0.85792266]
[1742148448448,0.27842853,603.68,602.55,0.85792266]
[1742148448647,0.33125745,603.76,602.55,0.85792266]
[1742148448648,0.27842853,603.67,602.55,0.85792266]
[1742148449042,0.27842853,603.66,602.55,0.85792266]
[1742148449244,0.27842853,603.75,602.55,0.85792266]
[1742148449447,0.27842853,603.74,602.55,0.85792266]
[1742148449645,0.27842853,603.75,602.55,0.85792266]
[1742148449850,0.33125745,603.76,602.55,0.85792266]
[1742148450053,0.27851407,603.75,602.55,0.85792266]
[1742148453246,0.33125745,603.76,602.55,0.85792266]
[1742148453553,0.2784846,603.75,602.55,0.85792266]
[1742148457547,0.2784846,603.75,602.56,0.30471202]
[1742148457953,0.2784846,603.74,602.58,0.33190613]
[1742148458254,0.2784846,603.73,602.58,0.33190613]
[1742148458453,0.2784846,604.04,602.58,0.33190613]
[1742148458752,0.2784846,604.03,602.59,0.30470343]
[1742148459253,0.2784846,604.02,602.61,0.33188961]
[1742148459454,0.2784846,604.05,602.61,0.33188961]
[1742148459654,0.2784846,604.04,602.61,0.33188961]
[1742148460451,3.73200339,604.05,602.61,0.33188961]
[1742148460656,0.2784846,604.04,602.61,0.33188961]
[1742148461753,2.97998784,604.04,602.61,0.33188961]
[1742148462055,0.2784846,604.03,602.61,0.33188961]
[1742148463756,0.2784846,604.02,602.61,0.33188961]
[1742148464055,0.2784846,604.01,602.61,0.33188961]
[1742148464451,0.2784846,604.0,602.61,0.33188961]
[1742148464757,1.43475768,604.3,602.61,0.33188961]
[1742148465057,0.60959683,604.29,602.61,0.33188961]
[1742148465352,0.60960231,604.28,602.61,0.33188961]
[1742148465656,0.60960779,604.27,602.61,0.33188961]
[1742148465858,0.60961327,604.26,602.61,0.33188961]
[1742148466051,0.60961097,604.25,602.61,0.33188961]
[1742148466260,0.60961645,604.24,602.61,0.33188961]
[1742148466556,0.60962193,604.23,602.61,0.33188961]
[1742148466756,0.60962741,604.22,602.61,0.33188961]
[1742148467153,0.27862215,604.21,602.61,0.33188961]
[1742148467355,0.27862215,604.2,602.61,0.33188961]
[1742148467552,0.27862215,604.19,602.61,0.33188961]
[1742148467953,0.27862215,604.18,602.61,0.33188961]
[1742148468156,0.27862215,604.17,602.61,0.33188961]
[1742148468457,0.27862215,604.16,602.61,0.33188961]
[1742148468653,0.27862215,604.15,602.61,0.33188961]
[1742148468857,0.27862215,604.14,602.61,0.33188961]
[1742148469057,0.27862215,604.13,602.61,0.33188961]
[1742148469257,0.27862215,604.12,602.61,0.33188961]
[1742148469458,0.27862215,604.11,602.61,0.33188961]
[1742148469658,0.27878737,604.1,602.61,0.33188961]
[1742148469860,0.27878737,604.16,602.61,0.33188961]
[1742148470055,0.60983098,604.15,602.61,0.33188961]
[1742148470258,0.27878737,604.14,602.61,0.33188961]
[1742148470458,0.27878737,604.13,602.61,0.33188961]
[1742148470657,0.27878737,604.12,602.61,0.33188961]
[1742148470856,0.33104361,604.15,602.61,0.33188961]
[1742148470857,0.27878737,604.11,602.61,0.33188961]
[1742148471060,0.27878737,604.1,602.61,0.33188961]
[1742148471262,1.76580129,604.15,602.61,0.33188961]
[1742148471458,0.27876498,604.14,602.61,0.33188961]
[1742148471661,0.27876498,604.13,602.61,0.33188961]
[1742148471861,0.27876498,604.12,602.61,0.33188961]
[1742148472261,0.27876498,604.11,602.61,0.33188961]
[1742148472463,0.27876498,604.1,602.61,0.33188961]
[1742148472764,0.27876498,604.09,602.61,0.33188961]
[1742148472965,3.45300194,604.14,602.61,0.33188961]
[1742148473168,3.7288815,604.13,602.61,0.33188961]
[1742148473360,3.45011155,604.12,602.62,0.30469719]
[1742148473561,3.7288815,604.11,602.64,0.33187309]
[1742148473760,3.7288815,604.1,602.65,0.30469719]
[1742148473962,3.7288815,604.09,602.65,0.30469719]
[1742148474160,3.45011155,604.08,602.65,0.30469719]
[1742148474365,0.27876995,604.07,602.65,0.30469719]
[1742148474864,0.27876995,604.07,602.67,0.33185657]
[1742148475164,0.27876995,604.07,602.68,0.30469719]
[1742148475365,0.27876995,604.07,602.69,0.33184555]
[1742148475565,0.27876995,604.07,602.7,0.30469719]
[1742148475765,0.27876995,604.07,602.72,0.33182904]
[1742148476258,0.27876995,604.14,602.72,0.33182904]
[1742148476463,0.27876995,604.13,602.72,0.33182904]
[1742148476658,0.27876995,604.14,602.72,0.33182904]
[1742148476963,0.27876995,604.13,602.72,0.33182904]
[1742148477163,0.27876995,604.12,602.72,0.33182904]
[1742148477466,0.27876995,604.11,602.72,0.33182904]
[1742148477761,0.27876995,604.1,602.72,0.33182904]
[1742148477962,0.27876995,604.09,602.72,0.33182904]
[1742148478167,0.27876995,604.14,602.72,0.33182904]
[1742148478368,0.27876995,604.13,602.72,0.33182904]
[1742148478567,0.2788263,604.12,602.72,0.33182904]
[1742148478767,0.2788263,604.14,602.72,0.33182904]
[1742148478967,0.2788263,604.13,602.72,0.33182904]
[1742148479168,0.2788263,604.14,602.72,0.33182904]
[1742148479467,0.2788263,604.13,602.72,0.33182904]
[1742148479670,0.2788263,604.14,602.72,0.33182904]
[1742148479867,0.2788263,604.13,602.72,0.33182904]
[1742148480068,0.2788263,604.14,602.72,0.33182904]
[1742148480268,0.2788263,604.13,602.72,0.33182904]
[1742148480466,0.2788263,604.14,602.72,0.33182904]
[1742148480674,0.2788263,604.13,602.73,0.30467282]
[1742148480865,0.2788263,604.12,602.74,0.33181803]
[1742148481067,0.2788263,604.14,602.74,0.33181803]
[1742148481267,0.2788263,604.13,602.74,0.33181803]
[1742148481484,0.27875827,604.12,602.74,0.33181803]
[1742148481665,0.27875827,604.14,602.74,0.33181803]
[1742148481865,0.27875827,604.11,602.74,0.33181803]
[1742148482065,0.27875827,604.13,602.74,0.33181803]
[1742148482265,0.27875827,604.1,602.74,0.33181803]
[1742148482468,0.27875827,604.09,602.74,0.33181803]
[1742148482668,0.27875827,604.14,602.74,0.33181803]
[1742148482869,0.60981284,604.13,602.74,0.33181803]
[1742148483171,0.60981832,604.12,602.74,0.33181803]
[1742148483471,0.6098238,604.11,602.74,0.33181803]
[1742148483772,0.60982928,604.1,602.74,0.33181803]
[1742148483969,0.60983476,604.09,602.74,0.33181803]
[1742148484198,0.60984024,604.08,602.74,0.33181803]
[1742148484370,0.27875827,604.07,602.74,0.33181803]
[1742148484574,0.33109293,604.06,602.74,0.33181803]
[1742148484770,0.27875827,604.05,602.74,0.33181803]
[1742148484966,0.3311039,604.04,602.74,0.33181803]
[1742148485370,0.27892593,604.03,602.74,0.33181803]
[1742148486176,0.27892593,604.02,602.74,0.33181803]
[1742148486373,0.27892593,604.01,602.74,0.33181803]
[1742148486570,0.27892593,604.0,602.74,0.33181803]
[1742148486765,0.27892593,603.99,602.74,0.33181803]
[1742148487169,0.3311039,604.04,602.74,0.33181803]
[1742148487170,0.27892593,603.98,602.74,0.33181803]
[1742148487373,0.27892593,603.97,602.74,0.33181803]
[1742148487569,0.27892593,603.96,602.74,0.33181803]
[1742148487773,0.27892593,603.95,602.74,0.33181803]
[1742148488074,0.27892593,603.94,602.74,0.33181803]
[1742148488276,0.27892593,604.03,602.74,0.33181803]
[1742148488574,0.27892593,604.02,602.74,0.33181803]
[1742148488869,0.3311039,604.04,602.74,0.33181803]
[1742148489076,0.27878247,604.01,602.74,0.33181803]
[1742148489276,0.60990829,604.0,602.74,0.33181803]
[1742148489474,0.60991378,603.99,602.74,0.33181803]
[1742148489675,0.60991926,603.98,602.74,0.33181803]
[1742148489874,0.60992474,603.97,602.74,0.33181803]
[1742148490074,0.27878247,603.96,602.74,0.33181803]
[1742148490883,0.33115324,603.95,602.74,0.33181803]
[1742148491377,0.27878247,603.94,602.74,0.33181803]
[1742148492076,0.3311642,603.93,602.74,0.33181803]
[1742148492276,0.27878247,603.92,602.74,0.33181803]
[1742148492476,0.60999908,603.91,602.74,0.33181803]
[1742148492670,0.61000456,603.9,602.74,0.33181803]
[1742148492870,0.27882391,603.89,602.74,0.33181803]
[1742148493476,0.61001005,603.89,602.74,0.33181803]
[1742148493775,0.27882391,603.88,602.74,0.33181803]
[1742148503882,0.27860678,603.87,602.74,0.33181803]
[1742148504080,0.27860678,603.86,602.74,0.33181803]
[1742148504278,0.27860678,603.88,602.74,0.33181803]
[1742148504480,0.27860678,603.87,602.74,0.33181803]
[1742148504679,0.33118614,603.89,602.74,0.33181803]
[1742148504680,0.27860678,603.88,602.74,0.33181803]
[1742148504880,0.27860678,603.87,602.74,0.33181803]
[1742148505074,0.27860678,603.88,602.74,0.33181803]
[1742148505277,0.27860678,603.87,602.74,0.33181803]
[1742148505478,0.33118614,603.89,602.74,0.33181803]
[1742148505676,0.27853498,603.88,602.74,0.33181803]
[1742148507785,0.27853498,603.87,602.74,0.33181803]
[1742148507982,1.71099758,604.43,602.74,0.33181803]
[1742148508184,0.3309012,604.41,602.74,0.33181803]
[1742148508385,2.79199736,604.4,602.74,0.33181803]
[1742148508584,5.15871844,604.39,602.75,0.30463913]
[1742148508783,1.71099758,604.38,602.75,0.30463913]
[1742148508986,0.33092311,604.37,602.76,0.33180702]
[1742148509187,0.27853498,604.36,602.77,0.30463913]
[1742148509485,0.60946904,604.35,602.78,0.33179601]
[1742148509680,0.27853498,604.34,602.79,0.30463913]
[1742148509884,0.27853498,604.33,602.8,0.331785]
[1742148510080,0.60948546,604.32,602.8,0.331785]
[1742148510284,0.27853498,604.31,602.8,0.331785]
[1742148510481,0.60949642,604.3,602.8,0.331785]
[1742148510679,0.33096691,604.29,602.8,0.331785]
[1742148510883,0.27853498,604.28,602.8,0.331785]
[1742148511083,0.27853498,604.27,602.8,0.331785]
[1742148511285,0.27853498,604.26,602.8,0.331785]
[1742148511481,0.27853498,604.25,602.8,0.331785]
[1742148511688,0.27853498,604.24,602.81,0.30462629]
[1742148511890,0.27853498,604.24,602.8,0.331785]
[1742148511891,0.27853498,604.23,602.82,0.33177399]
[1742148512184,0.27853498,604.22,602.82,0.33177399]
[1742148512388,0.27853498,604.21,602.82,0.33177399]
[1742148512591,0.27849575,604.2,602.82,0.33177399]
[1742148512786,0.27849575,604.19,602.82,0.33177399]
[1742148512987,0.27849575,604.18,602.82,0.33177399]
[1742148513289,0.27849575,604.17,602.82,0.33177399]
[1742148513481,0.27849575,604.16,602.82,0.33177399]
[1742148513686,0.27849575,604.27,602.82,0.33177399]
[1742148513983,0.27849575,604.26,602.82,0.33177399]
[1742148514188,0.27849575,604.25,602.82,0.33177399]
[1742148514488,0.27849575,604.24,602.82,0.33177399]
[1742148514688,0.27849575,604.23,602.82,0.33177399]
[1742148515086,0.27849575,604.22,602.82,0.33177399]
[1742148515388,0.33097239,604.28,602.82,0.33177399]
[1742148515389,0.27849575,604.21,602.82,0.33177399]
[1742148515588,0.27849575,604.2,602.83,0.30461245]
[1742148515784,0.27849575,604.19,602.84,0.33176298]
[1742148515986,0.33097239,604.28,602.84,0.33176298]
[1742148515987,0.27849575,604.18,602.84,0.33176298]
[1742148516190,0.27849575,604.17,602.84,0.33176298]
[1742148516387,0.27849575,604.16,602.84,0.33176298]
[1742148516588,0.27849575,604.15,602.84,0.33176298]
[1742148516791,0.27849575,604.14,602.84,0.33176298]
[1742148516988,0.27849575,604.13,602.84,0.33176298]
[1742148517386,0.27849575,604.12,602.84,0.33176298]
[1742148517592,5.15867921,604.26,602.84,0.33176298]
[1742148517788,1.71095835,604.25,602.84,0.33176298]
[1742148517994,0.27849575,604.24,602.84,0.33176298]
[1742148518197,0.27849575,604.23,602.84,0.33176298]
[1742148518493,0.27849575,604.22,602.84,0.33176298]
[1742148518694,0.27849575,604.21,602.85,0.506]
[1742148518891,0.27849575,604.2,602.85,0.506]
[1742148519090,0.27849575,604.19,602.85,0.506]
[1742148519391,3.44772086,604.24,602.86,0.33175198]
[1742148519595,0.2784237,604.18,602.86,0.33175198]
[1742148519796,0.2784237,604.17,602.86,0.33175198]
[1742148519998,0.2784237,604.16,602.86,0.33175198]
[1742148520193,0.2784237,604.15,602.86,0.33175198]
[1742148520594,0.2784237,604.14,602.86,0.33175198]
[1742148520788,0.2784237,604.13,602.86,0.33175198]
[1742148520993,0.2784237,604.12,602.86,0.33175198]
[1742148521195,0.2784237,604.21,602.86,0.33175198]
[1742148521397,2.70159295,604.23,602.86,0.33175198]
[1742148521593,0.278388,604.22,602.86,0.33175198]
[1742148522595,0.278388,604.21,602.86,0.33175198]
[1742148522801,0.33097239,604.28,602.86,0.33175198]
[1742148522802,0.278388,604.2,602.86,0.33175198]
[1742148523007,0.278388,604.27,602.86,0.33175198]
[1742148523298,0.33097239,604.28,602.86,0.33175198]
[1742148523501,0.27848736,604.27,602.86,0.33175198]
[1742148528402,0.27858653,604.26,602.86,0.33175198]
[1742148528604,0.27858653,604.27,602.86,0.33175198]
[1742148528799,0.27858653,604.25,602.86,0.33175198]
[1742148528998,0.27858653,604.24,602.86,0.33175198]
[1742148529200,0.27858653,604.27,602.86,0.33175198]
[1742148529396,0.27858653,604.26,602.86,0.33175198]
[1742148529602,0.27858653,604.25,602.86,0.33175198]
[1742148529797,0.27858653,604.27,602.86,0.33175198]
[1742148529999,0.27858653,604.26,602.86,0.33175198]
[1742148530404,0.27855962,604.25,602.86,0.33175198]
[1742148530703,0.27855962,604.24,602.86,0.33175198]
[1742148530903,0.27855962,604.27,602.86,0.33175198]
[1742148531301,0.27855962,604.26,602.86,0.33175198]